bitfinex-derivatives/quotes_SOLF0:USTF0_20250911
["timestamp","ask_amount","ask_price","bid_price","bid_amount"]
[1757593879804,299.28,224.78,224.27,62.0]
[1757593880009,3.35102802,224.49,224.27,62.0]
[1757593880207,3.35102802,224.36,224.27,62.0]
[1757593880406,19.01176621,224.69,224.08,299.28]
[1757593880708,312.45,224.78,224.15,19.01176621]
[1757593880905,299.28,224.78,224.08,299.28]
[1757593881105,13.17,224.72,224.23,19.01176621]
[1757593881305,3.35102802,224.48,224.23,19.01176621]
[1757593881508,3.35102802,224.53,224.31,19.01176621]
[1757593881906,312.45,224.78,224.33,19.01176621]
[1757593882104,3.35102802,224.57,224.23,13.18]
[1757593882300,3.35102802,224.74,224.47,19.01176621]
[1757593882608,3.35102802,224.71,224.49,19.01176621]
[1757593882811,3.35102802,224.77,224.49,19.01176621]
[1757593883003,3.35102802,224.78,224.49,19.01176621]
[1757593883203,19.01176621,224.96,224.48,19.01176621]
[1757593883407,299.28,225.03,224.56,81.01176621]
[1757593883608,19.01176621,225.1,224.56,62.0]
[1757593883806,13.18,225.26,224.62,19.01176621]
[1757593884004,3.35102802,224.88,224.62,19.01176621]
[1757593884212,3.35102802,224.92,224.62,19.01176621]
[1757593884408,13.17,225.13,224.69,19.01176621]
[1757593884810,3.35102802,224.93,224.69,19.01176621]
[1757593885010,3.35102802,225.0,224.69,19.01176621]
[1757593885205,3.35102802,225.01,224.78,19.01176621]
[1757593885407,19.01176621,225.22,224.78,19.01176621]
[1757593885612,7.12,225.21,224.78,19.01176621]
[1757593885811,3.35102802,225.03,224.78,19.01176621]
[1757593886212,7.12,225.21,224.78,19.01176621]
[1757593886614,7.12,225.21,224.86,19.01176621]
[1757593886812,7.12,225.21,224.7,13.17]
[1757593886813,3.35102802,225.21,225.01,62.0]
[1757593887018,7.12,225.31,224.96,19.01176621]
[1757593887217,3.35102802,225.24,224.96,19.01176621]
[1757593887512,3.35102802,225.18,224.94,19.01176621]
[1757593887713,3.35102802,225.17,224.94,19.01176621]
[1757593887913,3.35102802,225.2,225.02,62.0]
[1757593888109,7.12,225.31,225.02,62.0]
[1757593888307,3.35102802,225.2,225.02,62.0]
[1757593888512,7.12,225.31,225.02,62.0]
[1757593888714,7.12,225.31,224.98,19.01176621]
[1757593889110,3.35102802,225.2,224.98,19.01176621]
[1757593889307,7.12,225.31,224.98,19.01176621]
[1757593889308,3.35102802,225.14,224.98,19.01176621]
[1757593889506,299.12,225.55,224.92,19.01176621]
[1757593889816,6.96,225.29,224.97,19.01176621]
[1757593890117,0.02908595,225.26,224.71,124.0]
[1757593890319,6.96,225.25,224.95,19.01176621]
[1757593890516,3.35102802,225.14,224.95,19.01176621]
[1757593890918,3.35102802,225.13,224.71,124.0]
[1757593891114,6.96,225.17,224.88,19.01176621]
[1757593891417,6.96,225.17,224.92,19.01176621]
[1757593891714,0.03182763,225.05,224.87,19.01176621]
[1757593892116,0.03182763,225.05,224.9,19.01176621]
[1757593892316,6.96,225.17,224.68,1282.24]
[1757593892512,3.35102802,225.11,224.7,19.01176621]
[1757593892713,0.0282263,225.0,224.7,63.5002488]
[1757593892917,6.96,225.17,224.88,19.01176621]
[1757593893122,3.35102802,225.11,224.87,19.01176621]
[1757593893411,19.01176621,225.45,224.96,19.01176621]
[1757593893610,6.96,225.37,224.96,19.01176621]
[1757593893813,3.35102802,225.23,224.96,19.01176621]
[1757593894016,6.96,225.37,225.0,19.01176621]
[1757593894612,3.35102802,225.29,224.96,298.72]
[1757593894816,299.12,225.55,224.96,298.72]
[1757593894817,6.96,225.47,225.17,62.0]
[1757593895115,3.35102802,225.33,225.17,62.0]
[1757593895315,6.96,225.47,225.04,19.01176621]
[1757593895518,6.96,225.47,225.12,19.01176621]
[1757593895711,3.35102802,225.39,225.04,1280.0]
[1757593896020,3.35102802,225.4,225.15,19.01176621]
[1757593896215,3.35102802,225.43,225.15,19.01176621]
[1757593896518,3.35102802,225.44,225.19,11.15610947]
[1757593896719,3.35102802,225.52,225.26,11.15610947]
[1757593897016,3.35102802,225.56,225.31,11.15610947]
[1757593897217,6.96,225.77,225.38,11.15610947]
[1757593897522,6.96,225.77,225.43,11.15610947]
[1757593897717,6.96,225.77,225.25,13.18]
[1757593897718,6.96,225.77,225.46,11.15610947]
[1757593897919,3.35102802,225.63,225.4,11.15610947]
[1757593898221,6.96,225.77,225.59,62.0]
[1757593898416,6.96,225.88,225.59,62.0]
[1757593898619,3.35102802,225.77,225.59,73.15610947]
[1757593898812,3.35102802,225.74,225.55,11.15610947]
[1757593899010,6.96,225.78,225.52,298.46]
[1757593899617,3.35102802,225.73,225.52,298.46]
[1757593899821,3.35102802,225.75,225.52,298.46]
[1757593900017,6.96,225.87,225.58,11.15610947]
[1757593900317,6.96,225.87,225.63,11.15610947]
[1757593900523,6.96,225.99,225.63,11.15610947]
[1757593900920,6.96,225.99,225.52,298.46]
[1757593900921,3.35102802,225.92,225.52,298.46]
[1757593901115,3.35102802,225.96,225.76,11.15610947]
[1757593901315,3.35102802,226.04,225.87,11.15610947]
[1757593901523,6.96,226.23,225.63,13.18]
[1757593901715,6.96,226.23,225.97,62.0]
[1757593901925,0.03025904,225.98,225.97,62.0]
[1757593902119,11.15610947,226.36,225.97,62.0]
[1757593902320,3.35102802,226.27,226.02,11.15610947]
[1757593902515,6.96,226.29,225.79,13.18]
[1757593902721,6.96,226.29,225.96,11.15610947]
[1757593902921,6.96,226.29,225.8,124.0]
[1757593903225,11.15610947,226.1,225.5,298.06]
[1757593903426,6.96,225.9,225.57,11.15610947]
[1757593903617,3.35102802,225.74,225.53,13.4881511]
[1757593903926,298.0,226.13,225.4,11.15610947]
[1757593904225,6.96,226.12,225.25,311.31054489]
[1757593904521,3.35102802,225.78,225.74,0.03187646]
[1757593904724,3.35102802,225.69,225.4,11.15610947]
[1757593904918,3.35102802,225.73,225.26,124.0]
[1757593905223,3.35102802,225.73,225.41,62.0]
[1757593905224,6.96,225.73,225.41,62.0]
[1757593905631,6.96,225.85,225.45,11.15610947]
[1757593905817,3.35102802,225.74,225.45,11.15610947]
[1757593906023,3.35102802,225.8,225.32,13.18]
[1757593906217,3.35102802,225.75,225.48,11.15610947]
[1757593906424,18.11610947,225.85,225.32,13.18]
[1757593906725,0.02820611,225.64,225.59,0.03354677]
[1757593906918,0.02820611,225.64,225.35,0.05]
[1757593907119,6.96,225.74,225.35,0.05]
[1757593907315,6.96,225.74,225.38,0.05]
[1757593907519,11.15610947,226.2,225.48,0.05]
[1757593907520,6.96,225.85,225.48,0.05]
[1757593907916,11.15610947,225.96,225.56,0.05]
[1757593908123,11.15610947,225.96,225.6,24.33610947]
[1757593908316,11.15610947,225.96,225.59,0.05]
[1757593908317,3.35102802,225.8,225.59,0.05]
[1757593908522,3.35102802,225.89,225.63,13.18]
[1757593908718,297.84,226.25,225.84,62.0]
[1757593909024,11.15610947,225.96,225.84,62.0]
[1757593909223,3.35102802,225.85,225.58,1276.44]
[1757593909428,11.15610947,225.89,225.58,1276.44]
[1757593909625,3.35102802,225.72,225.58,1276.44]
[1757593909822,6.96,225.88,225.58,1276.44]
[1757593910021,6.96,226.19,225.61,11.15610947]
[1757593910226,6.96,226.09,225.7,11.15610947]
[1757593910425,297.78,226.47,225.72,13.18]
[1757593910426,3.35102802,226.0,225.72,13.18]
[1757593910627,0.35102802,226.02,225.72,13.18]
[1757593910932,421.78,226.47,225.61,65.09340201]
[1757593911233,6.96,226.08,225.61,65.09340201]
[1757593911420,6.96,226.08,225.62,137.18]
[1757593911627,0.35102802,226.05,225.77,13.18]
[1757593911820,18.11610947,226.19,225.8,11.15610947]
[1757593912027,6.96,226.19,225.81,13.18]
[1757593912228,0.35102802,226.17,226.06,62.0]
[1757593912526,0.35102802,226.14,226.06,62.0]
[1757593912729,0.35102802,226.16,226.06,62.0]
[1757593912928,0.35102802,226.15,225.91,297.66]
[1757593913228,0.35102802,226.08,225.91,297.66]
[1757593913427,0.35102802,226.14,225.91,297.66]
[1757593913832,308.71610947,226.8,226.03,11.15610947]
[1757593914024,11.15610947,226.36,226.03,1275.32]
[1757593914226,6.96,226.35,226.03,1275.32]
[1757593914623,0.35102802,226.25,226.03,1275.32]
[1757593914930,6.96,226.35,226.03,1275.32]
[1757593915232,0.35102802,226.33,226.04,13.18]
[1757593915427,6.96,226.43,226.03,1275.32]
[1757593915639,6.96,226.27,225.91,297.66]
[1757593915831,0.35102802,226.09,225.91,297.66]
[1757593916031,6.96,226.18,225.95,62.0]
[1757593916232,0.35102802,226.07,225.91,297.66]
[1757593916429,0.35102802,226.11,225.91,297.66]
[1757593916634,0.35102802,226.08,225.91,297.66]
[1757593916829,6.96,226.24,225.91,297.66]
[1757593916830,0.35102802,226.16,225.91,297.66]
[1757593917036,6.96,226.24,225.91,297.66]
[1757593917228,0.35102802,226.19,225.91,297.66]
[1757593917429,7.2,226.34,225.95,13.18]
[1757593917630,7.2,226.46,226.02,13.18]
[1757593917925,11.15610947,226.34,225.96,124.0]
[1757593918130,0.35102802,226.23,225.96,135.15610947]
[1757593918328,0.35102802,226.12,225.91,297.66]
[1757593918534,7.2,226.16,225.91,297.66]
[1757593918943,0.35102802,226.09,225.91,297.66]
[1757593919132,0.35102802,226.05,225.92,62.0]
[1757593919335,0.35102802,226.08,225.92,62.0]
[1757593919633,7.2,226.08,225.91,297.66]
[1757593920041,0.35102802,226.02,225.91,297.66]
[1757593920234,0.35102802,225.92,225.66,297.24]
[1757593920440,7.2,225.98,225.66,297.24]
[1757593920736,0.35102802,225.94,225.67,11.15610947]
[1757593920939,7.2,225.98,225.66,297.24]
[1757593921136,7.55102802,225.76,225.66,297.24]
[1757593921343,0.35102802,225.67,225.47,1273.86]
[1757593921536,0.35102802,225.66,225.44,6.91]
[1757593921739,13.17,226.19,225.42,297.22]
[1757593921944,0.35102802,225.5,225.23,6.91]
[1757593922237,11.15610947,225.62,225.24,6.91]
[1757593922538,11.15610947,225.55,225.29,62.0]
[1757593923038,0.35102802,225.48,225.24,6.91]
[1757593923238,11.15610947,225.6,225.21,1273.86]
[1757593923437,11.15610947,225.41,225.19,297.22]
[1757593923640,0.35102802,225.2,224.97,13.18]
[1757593923838,11.15610947,225.6,224.98,6.91]
[1757593924138,11.15610947,225.35,224.98,6.91]
[1757593924340,0.35102802,225.3,224.98,6.91]
[1757593924536,0.35102802,225.27,225.0,20.09]
[1757593924734,11.15610947,225.38,225.0,20.09]
[1757593924940,11.15610947,225.38,225.02,13.18]
[1757593925237,0.35102802,225.34,225.01,6.91]
[1757593925439,11.15610947,225.37,225.01,6.91]
[1757593925646,0.35102802,225.25,225.02,13.18]
[1757593925845,0.35102802,225.17,224.96,1274.1]
[1757593926045,297.32,225.61,224.96,1274.1]
[1757593926046,0.35102802,225.07,225.01,62.0]
[1757593926352,11.15610947,225.2,225.01,62.0]
[1757593926544,11.15610947,225.2,224.96,1274.1]
[1757593926739,11.15610947,225.22,224.96,1274.1]
[1757593927042,297.32,225.61,224.96,1274.1]
[1757593927343,11.15610947,225.29,224.97,6.91]
[1757593927543,11.15610947,225.6,224.99,6.91]
[1757593927845,94.42695897,225.7,225.11,11.15610947]
[1757593928147,11.15610947,225.66,225.26,6.91]
[1757593928448,11.15610947,225.7,225.32,6.91]
[1757593928747,0.34,225.77,225.35,6.91]
[1757593928748,11.15610947,225.73,225.35,6.91]
[1757593928950,11.15610947,225.73,225.35,130.91]
[1757593929144,7.2,225.65,225.35,6.91]
[1757593929348,7.2,225.58,225.33,297.66]
[1757593929542,11.15610947,225.52,225.38,62.0]
[1757593929851,7.2,225.58,225.38,62.0]
[1757593930146,297.6,225.94,225.33,6.91]
[1757593930453,57.69080856,226.2,225.15,63.85123242]
[1757593930454,11.15610947,225.81,225.4,6.91]
[1757593930657,308.83610947,226.2,225.42,6.91]
[1757593930950,308.83610947,226.2,225.51,6.91]
[1757593931156,11.15610947,225.94,225.55,6.91]
[1757593931358,11.15610947,225.94,225.57,11.15610947]
[1757593931552,308.83610947,226.2,225.58,6.91]
[1757593931751,11.15610947,225.93,225.58,6.91]
[1757593931950,0.92,225.92,225.58,6.91]
[1757593932251,11.15610947,225.86,225.58,6.91]
[1757593932453,0.92,225.85,225.58,6.91]
[1757593932649,11.15610947,225.79,225.45,6.91]
[1757593932855,0.92,225.78,225.45,6.91]
[1757593933052,0.92,225.78,225.41,297.68]
[1757593933053,0.92,225.71,225.54,62.0]
[1757593933249,0.92,225.71,225.41,297.68]
[1757593933454,0.92,225.71,225.42,6.91]
[1757593933859,11.15610947,225.75,225.42,6.91]
[1757593934158,0.92,225.74,225.42,6.91]
[1757593935158,11.15610947,225.73,225.42,6.91]
[1757593935550,0.92,225.72,225.42,6.91]
[1757593936055,11.15610947,225.7,225.42,6.91]
[1757593936258,11.15610947,225.7,225.43,62.0]
[1757593936457,0.92,225.72,225.43,62.0]
[1757593936659,11.15610947,225.71,225.42,6.91]
[1757593937362,11.15610947,225.71,225.41,297.68]
[1757593937363,0.92,225.63,225.41,297.68]
[1757593937956,11.15610947,225.66,225.41,297.68]
[1757593938160,11.15610947,225.65,225.42,6.91]
[1757593938357,11.15610947,225.72,225.42,6.91]
[1757593938762,11.15610947,225.65,225.42,6.91]
[1757593939267,0.92,225.64,225.41,297.68]
[1757593939559,0.92,225.64,225.32,6.91]
[1757593939560,11.15610947,225.51,225.32,62.0]
[1757593939761,11.15610947,225.51,225.31,1275.8]
[1757593939968,24.32610947,225.9,225.15,361.51123242]
[1757593939969,11.15610947,225.44,225.15,361.51123242]
[1757593940163,0.92,225.36,225.15,361.51123242]
[1757593940363,11.15610947,225.35,225.06,1275.72]
[1757593940567,0.92,225.34,224.99,6.91]
[1757593940869,0.92,225.27,224.99,6.91]
[1757593941069,11.15610947,225.28,224.99,6.91]
[1757593941268,11.15610947,225.28,224.96,11.15610947]
[1757593941269,0.92,225.36,225.01,11.15610947]
[1757593941459,0.92,225.46,225.02,6.91]
[1757593941659,0.92,225.41,225.05,6.91]
[1757593941869,0.92,225.34,225.05,6.91]
[1757593942463,297.72,225.68,225.09,6.91]
[1757593942664,297.72,225.68,224.93,297.66]
[1757593942665,0.92,225.44,225.17,6.91]
[1757593942964,11.15610947,225.39,225.17,6.91]
[1757593943169,11.15610947,225.32,224.96,6.91]
[1757593943371,0.92,225.38,225.01,6.91]
[1757593943574,11.15610947,225.46,225.08,6.91]
[1757593944165,12.07610947,225.48,225.11,11.15610947]
[1757593944365,11.15610947,225.54,225.13,6.91]
[1757593944667,11.15610947,225.44,225.13,6.91]
[1757593945470,0.92,225.43,225.13,6.91]
[1757593945668,0.92,225.36,225.13,6.91]
[1757593945875,0.92,225.67,225.14,62.0]
[1757593946169,0.92,225.45,225.14,62.0]
[1757593946469,0.92,225.45,225.13,6.91]
[1757593946771,11.15610947,225.53,225.18,13.18]
[1757593947074,11.15610947,225.46,225.2,13.18]
[1757593947372,11.15610947,225.54,225.2,7.59]
[1757593947572,11.15610947,225.54,225.21,13.18]
[1757593947968,11.15610947,225.54,225.24,13.18]
[1757593948175,11.15610947,225.61,225.26,13.18]
[1757593948375,0.95,225.64,225.32,13.18]
[1757593948568,0.95,225.64,225.34,13.18]
[1757593948780,0.95,225.64,225.36,13.18]
[1757593948971,0.95,225.64,225.37,7.59]
[1757593949468,0.95,225.64,225.41,62.0]
[1757593949875,0.95,225.58,225.28,7.59]
[1757593950275,0.95,225.58,225.29,13.18]
[1757593950474,297.88,225.83,225.33,13.18]
[1757593950475,11.15610947,225.67,225.33,13.18]
[1757593950672,11.15610947,225.67,225.37,13.18]
[1757593951075,11.15610947,225.67,225.41,13.18]
[1757593951275,11.15610947,225.67,225.4,7.59]
[1757593951578,11.15610947,225.6,225.4,7.59]
[1757593951779,11.15610947,225.64,225.4,7.59]
[1757593951976,0.95,225.63,225.24,7.59]
[1757593952172,0.95,225.56,225.24,7.59]
[1757593952373,311.05,225.83,225.24,7.59]
[1757593952374,0.95,225.49,225.24,7.59]
[1757593952777,11.15610947,225.53,225.24,7.59]
[1757593952975,11.15610947,225.53,225.29,62.0]
[1757593953374,0.95,225.58,225.29,62.0]
[1757593953581,0.95,225.58,225.3,7.59]
[1757593954076,0.02836562,225.46,225.41,0.03366427]
[1757593954275,0.02836562,225.46,225.41,7.62366427]
[1757593954475,0.95,225.58,225.33,7.59]
[1757593954674,11.15610947,225.54,225.33,7.59]
[1757593954983,0.95,225.46,225.2,7.59]
[1757593956275,11.15610947,225.4,225.19,412.72319456]
[1757593956580,12.10610947,225.38,225.19,412.72319456]
[1757593956890,0.95,225.38,225.19,412.72319456]
[1757593957683,0.95,225.47,225.2,7.59]
[1757593958079,0.95,225.47,225.21,13.18]
[1757593958387,0.95,225.56,225.24,20.77]
[1757593958778,0.95,225.56,225.26,13.18]
[1757593959173,0.95,225.56,225.19,412.72319456]
[1757593959174,0.95,225.64,225.32,13.18]
[1757593959373,0.95,225.56,225.31,7.59]
[1757593959575,18.87505452,225.57,225.22,7.59]
[1757593959775,0.95,225.48,225.22,7.59]
[1757593960173,18.87505452,225.45,225.19,412.72319456]
[1757593960379,0.95,225.44,225.19,412.72319456]
[1757593961272,0.95,225.44,225.2,20.77]
[1757593961471,18.87505452,225.49,225.2,13.18]
[1757593961781,18.87505452,225.57,225.3,13.18]
[1757593962083,0.95,225.61,225.31,7.59]
[1757593962283,18.87505452,225.57,225.31,7.59]
[1757593962579,18.87505452,225.57,225.19,412.72319456]
[1757593962580,0.95,225.48,225.2,69.59]
[1757593963383,0.95,225.47,225.2,69.59]
[1757593963581,0.95,225.4,225.2,62.0]
[1757593964179,0.95,225.4,225.19,412.72319456]
[1757593964676,0.95,225.38,225.0,297.94]
[1757593964881,0.95,225.38,225.01,7.59]
[1757593965276,0.95,225.38,225.07,7.59]
[1757593965590,0.95,225.49,225.16,13.18]
[1757593965786,0.95,225.49,225.15,7.59]
[1757593965787,18.87505452,225.44,225.17,7.59]
[1757593965981,0.95,225.49,225.17,7.59]
[1757593966174,18.87505452,225.54,225.23,7.59]
[1757593966375,0.95,225.59,225.18,1574.96]
[1757593966376,0.95,225.59,225.28,7.59]
[1757593966678,18.87505452,225.54,225.3,7.59]
[1757593966988,0.95,225.53,225.3,7.59]
[1757593967185,0.95,225.53,225.31,62.0]
[1757593967583,0.95,225.53,225.24,297.96]
[1757593968073,0.95,225.53,225.25,7.59]
[1757593968277,18.87505452,225.69,225.28,7.59]
[1757593968476,18.87505452,225.69,225.33,7.59]
[1757593968680,18.87505452,225.69,225.37,7.59]
[1757593969278,0.95,225.6,225.37,7.59]
[1757593969680,0.95,225.6,225.25,7.59]
[1757593969881,19.82505452,225.6,225.25,7.59]
[1757593970082,0.95,225.59,225.25,7.59]
[1757593970391,0.95,225.43,225.24,297.96]
[1757593970682,19.82505452,225.43,225.15,115.52073234]
[1757593970886,0.95,225.42,225.15,115.52073234]
[1757593971684,0.95,225.42,225.16,7.59]
[1757593972591,0.95,225.34,225.08,297.94]
[1757593973795,0.95,225.34,225.09,62.0]
[1757593973993,0.95,225.33,225.08,297.94]
[1757593974493,0.95,225.33,224.99,20.77]
[1757593974786,0.95,225.33,225.0,13.18]
[1757593974992,0.95,225.33,225.06,13.18]
[1757593975183,0.95,225.33,225.05,7.59]
[1757593975383,0.93,225.35,225.05,7.59]
[1757593975793,0.93,225.34,225.05,7.59]
[1757593976992,0.93,225.34,225.06,62.0]
[1757593977685,0.93,225.34,225.07,7.17]
[1757593977889,0.94,225.43,225.07,7.17]
[1757593978791,0.94,225.35,225.07,7.17]
[1757593980294,0.94,225.43,225.09,13.18]
[1757593980494,18.87505452,225.39,225.1,7.17]
[1757593980889,0.94,225.38,225.11,62.0]
[1757593981194,0.94,225.38,224.93,297.98]
[1757593981195,18.87505452,225.31,224.95,7.17]
[1757593981395,0.94,225.21,224.93,297.98]
[1757593981590,0.94,225.18,224.93,297.98]
[1757593981791,0.94,225.18,224.94,7.17]
[1757593983094,298.12,225.37,224.94,7.17]
[1757593983402,18.87505452,225.23,224.94,7.17]
[1757593983697,0.94,225.25,224.94,7.17]
[1757593983896,0.94,225.24,224.94,7.17]
[1757593984097,0.94,225.24,224.96,7.17]
[1757593984401,18.87505452,225.32,224.96,7.17]
[1757593984600,18.87505452,225.34,224.96,7.17]
[1757593984898,18.87505452,225.39,224.96,7.17]
[1757593985102,18.87505452,225.49,225.02,7.17]
[1757593985291,0.94,225.53,225.04,7.17]
[1757593985491,0.94,225.53,225.08,7.17]
[1757593985801,18.87505452,225.53,225.09,7.17]
[1757593985994,298.2,225.71,225.09,7.17]
[1757593985995,0.94,225.44,225.09,7.17]
[1757593986200,0.94,225.36,225.04,298.2]
[1757593986499,0.94,225.36,225.03,298.2]
[1757593986907,18.87505452,225.34,225.03,298.2]
[1757593987198,0.94,225.36,225.04,7.17]
[1757593987494,0.94,225.44,225.15,7.17]
[1757593987697,18.87505452,225.41,225.15,7.17]
[1757593987897,124.0,225.72,225.03,298.2]
[1757593987898,0.94,225.77,225.17,7.17]
[1757593988096,18.87505452,225.69,225.19,7.17]
[1757593988291,18.87505452,225.76,225.29,7.17]
[1757593988491,18.87505452,225.76,225.36,18.87505452]
[1757593988802,18.87505452,225.76,225.37,7.17]
[1757593989098,18.87505452,225.76,225.34,18.87505452]
[1757593989099,18.87505452,225.78,225.4,7.17]
[1757593989596,0.94,225.69,225.4,7.17]
[1757593990096,0.94,225.77,225.41,7.17]
[1757593990296,298.2,225.9,225.41,7.17]
[1757593990492,0.94,225.71,225.41,7.17]
[1757593990692,0.94,225.63,225.41,7.17]
[1757593990893,0.02810499,225.68,225.54,0.03007975]
[1757593991099,0.94,225.67,225.54,0.03007975]
[1757593991302,0.94,225.63,225.3,298.2]
[1757593991501,0.94,225.45,225.13,298.1]
[1757593991697,0.94,225.45,225.08,298.1]
[1757593991900,0.94,225.37,225.05,7.17]
[1757593992809,19.81505452,225.46,225.05,7.17]
[1757593993008,0.94,225.46,225.05,7.17]
[1757593993206,18.87505452,225.48,225.09,7.17]
[1757593993409,0.94,225.56,225.09,7.17]
[1757593993602,18.87505452,225.54,225.11,7.17]
[1757593993804,19.81505452,225.46,225.11,7.17]
[1757593994005,18.87505452,225.54,225.11,7.17]
[1757593994408,18.87505452,225.58,225.21,7.17]
[1757593994599,19.81505452,225.64,225.23,7.17]
[1757593994800,18.87505452,225.64,225.23,7.17]
[1757593995008,0.94,225.63,225.23,7.17]
[1757593995516,0.94,225.47,225.22,298.08]
[1757593995805,0.94,225.39,225.07,298.08]
[1757593997103,18.87505452,225.4,225.07,298.08]
[1757593997308,0.94,225.31,225.07,298.08]
[1757593997503,0.94,225.23,224.96,7.17]
[1757593997705,18.87505452,225.19,224.86,7.17]
[1757593998005,19.81505452,225.09,224.85,298.08]
[1757593998212,0.94,225.19,224.86,7.17]
[1757593998607,18.87505452,225.15,224.86,7.17]
[1757593998812,0.94,225.19,224.88,7.17]
[1757593999010,18.87505452,225.13,224.88,7.17]
[1757593999321,0.94,225.12,224.87,298.1]
[1757594001511,19.81505452,225.22,224.88,7.17]
[1757594001711,0.94,225.22,224.88,7.17]
[1757594001915,0.94,225.16,224.88,7.17]
[1757594002109,18.87505452,225.17,224.87,298.1]
[1757594002412,0.94,225.08,224.87,298.1]
[1757594002812,18.87505452,225.07,224.87,298.1]
[1757594003012,0.94,225.08,224.87,298.1]
[1757594003610,0.94,225.08,224.88,7.17]
[1757594004212,0.94,225.08,224.87,298.1]
[1757594004510,18.87505452,225.05,224.87,298.1]
[1757594004705,0.94,225.04,224.87,298.1]
[1757594004905,18.87505452,224.98,224.72,1582.99]
[1757594005106,13.31,225.09,224.63,7.17]
[1757594005312,0.94,224.9,224.63,7.17]
[1757594005915,18.87505452,224.89,224.63,7.17]
[1757594006215,0.94,224.9,224.63,7.17]
[1757594006613,0.94,224.99,224.63,7.17]
[1757594006807,0.94,225.04,224.66,7.17]
[1757594007010,0.94,224.97,224.66,7.17]
[1757594007216,18.87505452,224.95,224.66,7.17]
[1757594007610,0.96,225.18,224.66,7.17]
[1757594007818,0.96,225.18,224.6,32.05505452]
[1757594007819,0.96,225.09,224.69,13.18]
[1757594008020,0.96,225.09,224.7,7.34]
[1757594008318,0.96,225.07,224.7,7.34]
[1757594008519,18.87505452,225.06,224.7,7.34]
[1757594008727,0.96,225.29,224.8,7.34]
[1757594008919,0.96,225.24,224.83,7.34]
[1757594009316,18.87505452,225.22,224.83,7.34]
[1757594009621,298.48,225.32,224.83,7.34]
[1757594009622,0.96,225.12,224.83,7.34]
[1757594009820,19.83505452,225.12,224.83,7.34]
[1757594010214,0.96,225.12,224.83,7.34]
[1757594010415,298.48,225.32,224.81,298.46]
[1757594010416,0.96,225.21,224.85,32.05505452]
[1757594010619,0.96,225.21,224.87,7.34]
[1757594011117,0.96,225.21,224.88,62.0]
[1757594011414,0.96,225.17,224.87,7.34]
[1757594011818,18.87505452,225.18,224.87,7.34]
[1757594012020,0.96,225.09,224.81,298.46]
[1757594012418,18.87505452,225.02,224.71,1286.52]
[1757594012818,13.31,225.11,224.71,7.34]
[1757594013018,0.93,224.88,224.7,298.48]
[1757594013820,0.03203376,224.89,224.7,298.48]
[1757594014225,0.93,225.1,224.71,7.34]
[1757594014417,0.93,225.1,224.73,7.34]
[1757594014725,18.87505452,225.06,224.73,7.34]
[1757594015119,0.03001111,224.94,224.73,7.34]
[1757594015518,0.93,225.1,224.73,7.34]